[Event "Titled Tuesday Blitz January 25 2022"]
[White "Vasquez Schroeder, Rodrigo"]
[Black "Hoffmann, Asa"]
[WhiteFideId "3400042"]
[BlackFideId "2001470"]
[WhiteElo "2568"]
[BlackElo "2117"]
[Result "1-0"]
[Round "01"]
[TimeControl "180+1"]
[Date "2022.01.26"]
[WhiteClock "0:01:46"]
[BlackClock "0:01:13"]

1. e4 {[%clk 0:02:59]}  d6 {[%clk 0:02:59]} 2. d4 {[%clk 0:02:58]}  Nf6 {[%clk 0:02:56]} 3. Nc3 {[%clk 0:02:58]}  c6 {[%clk 0:02:55]} 4. a4 {[%clk 0:02:58]}  Qa5 {[%clk 0:02:53]} 5. Bd3 {[%clk 0:02:56]}  e5 {[%clk 0:02:53]} 6. Ne2 {[%clk 0:02:49]}  Be7 {[%clk 0:02:52]} 7. O-O {[%clk 0:02:48]}  O-O {[%clk 0:02:51]} 8. h3 {[%clk 0:02:48]}  Nbd7 {[%clk 0:02:47]} 9. Bd2 {[%clk 0:02:48]}  Qc7 {[%clk 0:02:46]} 10. Be3 {[%clk 0:02:46]}  a5 {[%clk 0:02:44]} 11. f4 {[%clk 0:02:45]}  b6 {[%clk 0:02:38]} 12. Qd2 {[%clk 0:02:42]}  Ba6 {[%clk 0:02:37]} 13. Bxa6 {[%clk 0:02:41]}  Rxa6 {[%clk 0:02:36]} 14. Rae1 {[%clk 0:02:39]}  Raa8 {[%clk 0:02:35]} 15. Ng3 {[%clk 0:02:39]}  g6 {[%clk 0:02:33]} 16. Qf2 {[%clk 0:02:36]}  exd4 {[%clk 0:02:30]} 17. Bxd4 {[%clk 0:02:36]}  Rae8 {[%clk 0:02:21]} 18. e5 {[%clk 0:02:33]}  Nd5 {[%clk 0:02:14]} 19. Nxd5 {[%clk 0:02:29]}  cxd5 {[%clk 0:02:13]} 20. e6 {[%clk 0:02:17]}  fxe6 {[%clk 0:02:07]} 21. Rxe6 {[%clk 0:02:18]}  Nc5 {[%clk 0:02:04]} 22. Re2 {[%clk 0:01:55]}  Bh4 {[%clk 0:02:03]} 23. Rxe8 {[%clk 0:01:55]}  Rxe8 {[%clk 0:02:01]} 24. Qf3 {[%clk 0:01:55]}  Bxg3 {[%clk 0:01:59]} 25. Qxg3 {[%clk 0:01:53]}  Ne4 {[%clk 0:01:58]} 26. Qg4 {[%clk 0:01:49]}  Qxc2 {[%clk 0:01:13]} 27. Qd7 {[%clk 0:01:46]} 1-0


[Site "https://www.chess.com"]

[Event "Titled Tuesday Blitz January 25 2022"]
[White "Vetokhin, Ilia"]
[Black "Nakamura, Hikaru"]
[WhiteFideId "24156078"]
[BlackFideId "2016192"]
[WhiteElo "1897"]
[BlackElo "2850"]
[Result "0-1"]
[Round "01"]
[TimeControl "180+1"]
[Date "2022.01.26"]
[WhiteClock "0:00:04"]
[BlackClock "0:01:27"]

1. d4 {[%clk 0:03:00]}  g6 {[%clk 0:02:59]} 2. c4 {[%clk 0:03:00]}  Bg7 {[%clk 0:03:00]} 3. Nf3 {[%clk 0:02:54]}  d6 {[%clk 0:02:57]} 4. g3 {[%clk 0:02:53]}  Bd7 {[%clk 0:02:56]} 5. Bg2 {[%clk 0:02:53]}  Qc8 {[%clk 0:02:57]} 6. h4 {[%clk 0:02:47]}  c5 {[%clk 0:02:56]} 7. d5 {[%clk 0:02:42]}  b5 {[%clk 0:02:56]} 8. cxb5 {[%clk 0:02:33]}  Nf6 {[%clk 0:02:55]} 9. Nc3 {[%clk 0:02:31]}  a6 {[%clk 0:02:55]} 10. b6 {[%clk 0:02:26]}  Qb7 {[%clk 0:02:54]} 11. O-O {[%clk 0:02:22]}  O-O {[%clk 0:02:54]} 12. Nd2 {[%clk 0:01:57]}  Qxb6 {[%clk 0:02:51]} 13. Nc4 {[%clk 0:01:57]}  Qc7 {[%clk 0:02:44]} 14. Qc2 {[%clk 0:01:50]}  Bb5 {[%clk 0:02:39]} 15. b3 {[%clk 0:01:42]}  Bxc4 {[%clk 0:02:38]} 16. bxc4 {[%clk 0:01:43]}  Nbd7 {[%clk 0:02:38]} 17. Bd2 {[%clk 0:01:14]}  Rab8 {[%clk 0:02:28]} 18. Rab1 {[%clk 0:01:10]}  Nb6 {[%clk 0:02:23]} 19. Na4 {[%clk 0:01:05]}  Nxa4 {[%clk 0:02:15]} 20. Qxa4 {[%clk 0:01:06]}  Qa7 {[%clk 0:02:16]} 21. Rb3 {[%clk 0:01:01]}  Rxb3 {[%clk 0:02:12]} 22. axb3 {[%clk 0:00:54]}  Rb8 {[%clk 0:02:12]} 23. Rb1 {[%clk 0:00:43]}  h5 {[%clk 0:01:59]} 24. Bf3 {[%clk 0:00:41]}  Nd7 {[%clk 0:01:59]} 25. e4 {[%clk 0:00:32]}  Bd4 {[%clk 0:01:58]} 26. Kg2 {[%clk 0:00:32]}  Kg7 {[%clk 0:01:53]} 27. Qa2 {[%clk 0:00:26]}  Nf6 {[%clk 0:01:51]} 28. Qc2 {[%clk 0:00:24]}  a5 {[%clk 0:01:38]} 29. Qa2 {[%clk 0:00:23]}  a4 {[%clk 0:01:38]} 30. bxa4 {[%clk 0:00:19]}  Rxb1 {[%clk 0:01:39]} 31. Qxb1 {[%clk 0:00:20]}  Qxa4 {[%clk 0:01:39]} 32. Qd3 {[%clk 0:00:20]}  Qa2 {[%clk 0:01:39]} 33. Be2 {[%clk 0:00:14]}  Nd7 {[%clk 0:01:36]} 34. Be3 {[%clk 0:00:13]}  Ne5 {[%clk 0:01:34]} 35. Qd2 {[%clk 0:00:06]}  Qb1 {[%clk 0:01:33]} 36. Bxd4 {[%clk 0:00:05]}  Qxe4+ {[%clk 0:01:32]} 37. f3 {[%clk 0:00:05]}  Qxd4 {[%clk 0:01:33]} 38. Qxd4 {[%clk 0:00:05]}  cxd4 {[%clk 0:01:34]} 39. f4 {[%clk 0:00:05]}  Nd7 {[%clk 0:01:34]} 40. Kf3 {[%clk 0:00:04]}  Nc5 {[%clk 0:01:33]} 41. g4 {[%clk 0:00:04]}  hxg4+ {[%clk 0:01:30]} 42. Kxg4 {[%clk 0:00:05]}  Kf6 {[%clk 0:01:28]} 43. Bf1 {[%clk 0:00:05]}  Ne4 {[%clk 0:01:26]} 44. Be2 {[%clk 0:00:03]}  d3 {[%clk 0:01:26]} 45. Bd1 {[%clk 0:00:03]}  Nf2+ {[%clk 0:01:26]} 46. Kf3 {[%clk 0:00:04]}  Nxd1 {[%clk 0:01:27]} 0-1


[Site "https://www.chess.com"]

[Event "Titled Tuesday Blitz January 25 2022"]
[White "Vifleemskaia, Svetlana"]
[Black "Gelman, Alexander"]
[WhiteFideId "4129490"]
[BlackFideId "4118316"]
[WhiteElo "1901"]
[BlackElo "2375"]
[Result "0-1"]
[Round "01"]
[TimeControl "180+1"]
[Date "2022.01.26"]
[WhiteClock "0:00:03"]
[BlackClock "0:00:42"]

1. d4 {[%clk 0:02:41]}  Nf6 {[%clk 0:02:59]} 2. c4 {[%clk 0:02:40]}  c5 {[%clk 0:02:59]} 3. dxc5 {[%clk 0:02:38]}  e6 {[%clk 0:02:58]} 4. Nf3 {[%clk 0:02:37]}  Bxc5 {[%clk 0:02:58]} 5. Nc3 {[%clk 0:02:35]}  a6 {[%clk 0:02:58]} 6. a3 {[%clk 0:02:34]}  Be7 {[%clk 0:02:58]} 7. g3 {[%clk 0:02:33]}  d6 {[%clk 0:02:57]} 8. Bg2 {[%clk 0:02:33]}  O-O {[%clk 0:02:56]} 9. O-O {[%clk 0:02:31]}  Qc7 {[%clk 0:02:56]} 10. Qd3 {[%clk 0:02:20]}  Nbd7 {[%clk 0:02:52]} 11. b4 {[%clk 0:02:14]}  b6 {[%clk 0:02:52]} 12. Bb2 {[%clk 0:02:06]}  Bb7 {[%clk 0:02:49]} 13. Rac1 {[%clk 0:02:05]}  Rac8 {[%clk 0:02:47]} 14. Na4 {[%clk 0:01:53]}  Bc6 {[%clk 0:02:37]} 15. Nc3 {[%clk 0:01:50]}  Qb8 {[%clk 0:02:31]} 16. Rfd1 {[%clk 0:01:37]}  Rfd8 {[%clk 0:02:31]} 17. e4 {[%clk 0:01:36]}  Bb7 {[%clk 0:02:26]} 18. Qe2 {[%clk 0:01:17]}  h6 {[%clk 0:02:20]} 19. h3 {[%clk 0:01:08]}  Qa8 {[%clk 0:02:18]} 20. Nd2 {[%clk 0:01:03]}  Rc7 {[%clk 0:02:15]} 21. Na4 {[%clk 0:00:52]}  Rdc8 {[%clk 0:02:03]} 22. Bd4 {[%clk 0:00:26]}  b5 {[%clk 0:01:58]} 23. Nb6 {[%clk 0:00:20]}  Nxb6 {[%clk 0:01:57]} 24. Bxb6 {[%clk 0:00:20]}  Rc6 {[%clk 0:01:56]} 25. Be3 {[%clk 0:00:17]}  bxc4 {[%clk 0:01:39]} 26. Rxc4 {[%clk 0:00:14]}  Rxc4 {[%clk 0:01:36]} 27. Nxc4 {[%clk 0:00:15]}  Qb8 {[%clk 0:01:25]} 28. Nb6 {[%clk 0:00:14]}  Rc3 {[%clk 0:01:17]} 29. a4 {[%clk 0:00:12]}  Bxe4 {[%clk 0:01:00]} 30. Bxe4 {[%clk 0:00:10]}  Nxe4 {[%clk 0:01:01]} 31. Qxa6 {[%clk 0:00:08]}  Nxg3 {[%clk 0:00:46]} 32. Qc8+ {[%clk 0:00:08]}  Rxc8 {[%clk 0:00:45]} 33. Nxc8 {[%clk 0:00:08]}  Qxc8 {[%clk 0:00:45]} 34. fxg3 {[%clk 0:00:07]}  Qc2 {[%clk 0:00:44]} 35. Ra1 {[%clk 0:00:05]}  Qc3 {[%clk 0:00:42]} 36. Bf2 {[%clk 0:00:03]}  Qxa1+ {[%clk 0:00:42]} 0-1


[Site "https://www.chess.com"]

[Event "Titled Tuesday Blitz January 25 2022"]
[White "Zhigalko, Sergei"]
[Black "Ronka, Erik"]
[WhiteFideId "13502956"]
[BlackFideId "505080"]
[WhiteElo "2662"]
[BlackElo "2264"]
[Result "0-1"]
[Round "01"]
[TimeControl "180+1"]
[Date "2022.01.26"]
[WhiteClock "0:00:02"]
[BlackClock "0:00:28"]

1. e4 {[%clk 0:03:00]}  c5 {[%clk 0:03:00]} 2. Nf3 {[%clk 0:03:01]}  d6 {[%clk 0:03:00]} 3. d4 {[%clk 0:03:01]}  Nf6 {[%clk 0:03:00]} 4. Nc3 {[%clk 0:03:01]}  cxd4 {[%clk 0:03:01]} 5. Qxd4 {[%clk 0:03:02]}  Nbd7 {[%clk 0:02:58]} 6. Bc4 {[%clk 0:02:55]}  e6 {[%clk 0:02:56]} 7. a4 {[%clk 0:01:47]}  a6 {[%clk 0:02:55]} 8. a5 {[%clk 0:01:37]}  Qc7 {[%clk 0:02:52]} 9. O-O {[%clk 0:01:31]}  Be7 {[%clk 0:02:46]} 10. Rd1 {[%clk 0:01:24]}  O-O {[%clk 0:02:39]} 11. h3 {[%clk 0:01:23]}  Ne5 {[%clk 0:02:31]} 12. Be2 {[%clk 0:01:15]}  Nxf3+ {[%clk 0:02:19]} 13. Bxf3 {[%clk 0:01:15]}  e5 {[%clk 0:02:20]} 14. Qd3 {[%clk 0:00:48]}  Be6 {[%clk 0:02:20]} 15. Be3 {[%clk 0:00:40]}  Rac8 {[%clk 0:02:11]} 16. Be2 {[%clk 0:00:21]}  Qc6 {[%clk 0:01:59]} 17. Rac1 {[%clk 0:00:17]}  Rfd8 {[%clk 0:01:56]} 18. Bb6 {[%clk 0:00:15]}  Rd7 {[%clk 0:01:53]} 19. Nd5 {[%clk 0:00:16]}  Bxd5 {[%clk 0:01:35]} 20. exd5 {[%clk 0:00:15]}  Qa4 {[%clk 0:01:36]} 21. c4 {[%clk 0:00:14]}  Bd8 {[%clk 0:01:24]} 22. Qc3 {[%clk 0:00:05]}  Bxb6 {[%clk 0:01:14]} 23. axb6 {[%clk 0:00:06]}  Ne4 {[%clk 0:01:07]} 24. Qe3 {[%clk 0:00:06]}  Nc5 {[%clk 0:01:05]} 25. Bg4 {[%clk 0:00:06]}  Qb4 {[%clk 0:00:59]} 26. Bxd7 {[%clk 0:00:04]}  Nxd7 {[%clk 0:01:00]} 27. Qa3 {[%clk 0:00:03]}  Qxb6 {[%clk 0:00:57]} 28. b4 {[%clk 0:00:03]}  h6 {[%clk 0:00:56]} 29. Rc3 {[%clk 0:00:03]}  Nf6 {[%clk 0:00:56]} 30. c5 {[%clk 0:00:03]}  Qc7 {[%clk 0:00:52]} 31. c6 {[%clk 0:00:02]}  Ne4 {[%clk 0:00:50]} 32. Rcc1 {[%clk 0:00:02]}  f5 {[%clk 0:00:50]} 33. cxb7 {[%clk 0:00:02]}  Qxb7 {[%clk 0:00:51]} 34. Rxc8+ {[%clk 0:00:02]}  Qxc8 {[%clk 0:00:52]} 35. Qd3 {[%clk 0:00:02]}  Qb7 {[%clk 0:00:51]} 36. Rb1 {[%clk 0:00:02]}  Qb6 {[%clk 0:00:50]} 37. Qe3 {[%clk 0:00:02]}  Qb5 {[%clk 0:00:50]} 38. f3 {[%clk 0:00:03]}  Nf6 {[%clk 0:00:50]} 39. Rc1 {[%clk 0:00:02]}  Nxd5 {[%clk 0:00:49]} 40. Qd2 {[%clk 0:00:03]}  Kh7 {[%clk 0:00:49]} 41. Rd1 {[%clk 0:00:03]}  Nf4 {[%clk 0:00:49]} 42. Qxd6 {[%clk 0:00:03]}  Qe2 {[%clk 0:00:49]} 43. Qd2 {[%clk 0:00:03]}  Qb5 {[%clk 0:00:49]} 44. Qc2 {[%clk 0:00:03]}  Ne2+ {[%clk 0:00:44]} 45. Kh2 {[%clk 0:00:02]}  Nd4 {[%clk 0:00:45]} 46. Qc5 {[%clk 0:00:02]}  Qb8 {[%clk 0:00:45]} 47. Kh1 {[%clk 0:00:02]}  Qe8 {[%clk 0:00:44]} 48. Re1 {[%clk 0:00:02]}  Nc6 {[%clk 0:00:39]} 49. Qd5 {[%clk 0:00:01]}  Nxb4 {[%clk 0:00:38]} 50. Qxe5 {[%clk 0:00:02]}  Qc8 {[%clk 0:00:37]} 51. Qe6 {[%clk 0:00:02]}  Qc2 {[%clk 0:00:35]} 52. Re5 {[%clk 0:00:02]}  Qc1+ {[%clk 0:00:34]} 53. Re1 {[%clk 0:00:02]}  Qf4 {[%clk 0:00:34]} 54. Qe3 {[%clk 0:00:02]}  Qc4 {[%clk 0:00:34]} 55. Qe6 {[%clk 0:00:02]}  Qf4 {[%clk 0:00:33]} 56. Qe5 {[%clk 0:00:03]}  Qg5 {[%clk 0:00:31]} 57. Rd1 {[%clk 0:00:03]}  Nc2 {[%clk 0:00:30]} 58. Qd6 {[%clk 0:00:01]}  Ne3 {[%clk 0:00:29]} 59. Rg1 {[%clk 0:00:01]}  f4 {[%clk 0:00:28]} 60. Qd2 {[%clk 0:00:02]}  Qg3 {[%clk 0:00:28]} 61. Qe1 {[%clk 0:00:02]}  Qg5 {[%clk 0:00:28]} 62. Qb1+ {[%clk 0:00:02]}  Nf5 {[%clk 0:00:28]} 63. Qe4 {[%clk 0:00:02]}  h5 {[%clk 0:00:28]} 64. Kh2 {[%clk 0:00:02]}  Kh6 {[%clk 0:00:28]} 65. Ra1 {[%clk 0:00:03]}  Qg3+ {[%clk 0:00:29]} 66. Kh1 {[%clk 0:00:03]}  Ne3 {[%clk 0:00:29]} 67. Qe6+ {[%clk 0:00:02]}  Kh7 {[%clk 0:00:28]} 68. Qe4+ {[%clk 0:00:03]}  Kh6 {[%clk 0:00:28]} 69. Rxa6+ {[%clk 0:00:03]}  g6 {[%clk 0:00:28]} 70. Ra1 {[%clk 0:00:02]}  Qxg2# {[%clk 0:00:28]} 0-1


[Site "https://www.chess.com"]

[Event "Titled Tuesday Blitz January 25 2022"]
[White "Al-Tarboush, Ward"]
[Black "Triapishko, Alexandr"]
[WhiteFideId "7601450"]
[BlackFideId "14122286"]
[WhiteElo "2276"]
[BlackElo "2479"]
[Result "0-1"]
[Round "02"]
[TimeControl "180+1"]
[Date "2022.01.26"]
[WhiteClock "0:00:03"]
[BlackClock "0:00:05"]

1. e4 {[%clk 0:03:00]}  e5 {[%clk 0:02:51]} 2. Nf3 {[%clk 0:02:59]}  Nc6 {[%clk 0:02:52]} 3. Bb5 {[%clk 0:02:59]}  Nge7 {[%clk 0:02:49]} 4. O-O {[%clk 0:02:59]}  Ng6 {[%clk 0:02:42]} 5. c3 {[%clk 0:02:56]}  a6 {[%clk 0:02:39]} 6. Ba4 {[%clk 0:02:54]}  d5 {[%clk 0:02:38]} 7. exd5 {[%clk 0:02:36]}  Qxd5 {[%clk 0:02:39]} 8. d4 {[%clk 0:02:32]}  Bg4 {[%clk 0:02:35]} 9. dxe5 {[%clk 0:02:24]}  Bxf3 {[%clk 0:02:24]} 10. gxf3 {[%clk 0:02:15]}  Qxd1 {[%clk 0:02:19]} 11. Rxd1 {[%clk 0:02:16]}  Nxe5 {[%clk 0:02:17]} 12. f4 {[%clk 0:02:13]}  Nd7 {[%clk 0:01:39]} 13. Bxc6 {[%clk 0:02:10]}  bxc6 {[%clk 0:01:39]} 14. Re1+ {[%clk 0:02:11]}  Be7 {[%clk 0:01:34]} 15. Nd2 {[%clk 0:02:10]}  f6 {[%clk 0:01:25]} 16. Nc4 {[%clk 0:02:09]}  Kf7 {[%clk 0:01:11]} 17. f5 {[%clk 0:02:09]}  g6 {[%clk 0:00:47]} 18. Bf4 {[%clk 0:02:04]}  gxf5 {[%clk 0:00:35]} 19. Bxc7 {[%clk 0:02:04]}  Rhg8+ {[%clk 0:00:36]} 20. Kf1 {[%clk 0:02:01]}  Rg4 {[%clk 0:00:30]} 21. Bd6 {[%clk 0:02:00]}  Bxd6 {[%clk 0:00:23]} 22. Nxd6+ {[%clk 0:02:01]}  Kg6 {[%clk 0:00:24]} 23. Re7 {[%clk 0:01:57]}  Ne5 {[%clk 0:00:24]} 24. h3 {[%clk 0:01:54]}  Rh4 {[%clk 0:00:19]} 25. Ke2 {[%clk 0:01:50]}  Rxh3 {[%clk 0:00:07]} 26. Rg1+ {[%clk 0:01:50]}  Ng4 {[%clk 0:00:08]} 27. f3 {[%clk 0:01:50]}  Rh2+ {[%clk 0:00:08]} 28. Kd3 {[%clk 0:01:20]}  Rd8 {[%clk 0:00:05]} 29. Re6 {[%clk 0:01:20]}  h5 {[%clk 0:00:03]} 30. fxg4 {[%clk 0:01:20]}  fxg4 {[%clk 0:00:04]} 31. Ke3 {[%clk 0:01:15]}  Rxb2 {[%clk 0:00:03]} 32. Ne4 {[%clk 0:01:08]}  Rf8 {[%clk 0:00:03]} 33. Kf4 {[%clk 0:01:00]}  Rxa2 {[%clk 0:00:02]} 34. Rxc6 {[%clk 0:00:56]}  Ra5 {[%clk 0:00:03]} 35. Nc5 {[%clk 0:00:42]}  Rd8 {[%clk 0:00:03]} 36. Re1 {[%clk 0:00:34]}  Rd5 {[%clk 0:00:02]} 37. Nb3 {[%clk 0:00:17]}  Rf5+ {[%clk 0:00:03]} 38. Kg3 {[%clk 0:00:17]}  Rae5 {[%clk 0:00:02]} 39. Rxe5 {[%clk 0:00:09]}  Rxe5 {[%clk 0:00:03]} 40. Kf4 {[%clk 0:00:09]}  Rf5+ {[%clk 0:00:03]} 41. Kg3 {[%clk 0:00:08]}  Rf3+ {[%clk 0:00:03]} 42. Kg2 {[%clk 0:00:08]}  h4 {[%clk 0:00:04]} 43. Nd4 {[%clk 0:00:08]}  h3+ {[%clk 0:00:04]} 44. Kg1 {[%clk 0:00:08]}  Rd3 {[%clk 0:00:04]} 45. Ne6 {[%clk 0:00:07]}  Rg3+ {[%clk 0:00:03]} 46. Kf2 {[%clk 0:00:07]}  Rf3+ {[%clk 0:00:03]} 47. Kg1 {[%clk 0:00:07]}  g3 {[%clk 0:00:03]} 48. Rd6 {[%clk 0:00:04]}  Rf2 {[%clk 0:00:03]} 49. Nf4+ {[%clk 0:00:02]}  Rxf4 {[%clk 0:00:02]} 50. Rd3 {[%clk 0:00:02]}  h2+ {[%clk 0:00:03]} 51. Kg2 {[%clk 0:00:02]}  Rf2+ {[%clk 0:00:03]} 52. Kh1 {[%clk 0:00:02]}  Rf1+ {[%clk 0:00:03]} 53. Kg2 {[%clk 0:00:02]}  Rg1+ {[%clk 0:00:04]} 54. Kf3 {[%clk 0:00:02]}  h1=Q+ {[%clk 0:00:05]} 55. Kf4 {[%clk 0:00:02]}  Qh4+ {[%clk 0:00:05]} 56. Ke3 {[%clk 0:00:02]}  Re1+ {[%clk 0:00:05]} 57. Kd2 {[%clk 0:00:03]}  g2 {[%clk 0:00:05]} 0-1


[Site "https://www.chess.com"]

[Event "Titled Tuesday Blitz January 25 2022"]
[White "Atakhan, Abtin"]
[Black "Steinberg, Nitzan"]
[WhiteFideId "22502203"]
[BlackFideId "2801795"]
[WhiteElo "2119"]
[BlackElo "2440"]
[Result "1-0"]
[Round "02"]
[TimeControl "180+1"]
[Date "2022.01.26"]
[WhiteClock "0:00:07"]
[BlackClock "0:00:05"]

1. e4 {[%clk 0:03:00]}  e5 {[%clk 0:02:58]} 2. Nf3 {[%clk 0:03:01]}  Nc6 {[%clk 0:02:59]} 3. Bb5 {[%clk 0:03:01]}  a6 {[%clk 0:02:58]} 4. Ba4 {[%clk 0:03:02]}  Nf6 {[%clk 0:02:58]} 5. O-O {[%clk 0:03:02]}  Be7 {[%clk 0:02:58]} 6. Re1 {[%clk 0:03:02]}  b5 {[%clk 0:02:58]} 7. Bb3 {[%clk 0:03:02]}  d6 {[%clk 0:02:58]} 8. a4 {[%clk 0:03:00]}  Bd7 {[%clk 0:02:53]} 9. c3 {[%clk 0:03:00]}  O-O {[%clk 0:02:52]} 10. d4 {[%clk 0:02:58]}  h6 {[%clk 0:02:46]} 11. Bc2 {[%clk 0:02:55]}  Re8 {[%clk 0:02:38]} 12. Nbd2 {[%clk 0:02:55]}  Bf8 {[%clk 0:02:35]} 13. Nf1 {[%clk 0:02:46]}  exd4 {[%clk 0:02:30]} 14. Nxd4 {[%clk 0:02:45]}  b4 {[%clk 0:02:16]} 15. Ng3 {[%clk 0:02:38]}  Rb8 {[%clk 0:02:07]} 16. h3 {[%clk 0:02:33]}  g6 {[%clk 0:02:05]} 17. Be3 {[%clk 0:02:30]}  Ne5 {[%clk 0:02:02]} 18. Qe2 {[%clk 0:02:27]}  c5 {[%clk 0:01:53]} 19. Nf3 {[%clk 0:02:20]}  b3 {[%clk 0:01:50]} 20. Nxe5 {[%clk 0:02:17]}  Rxe5 {[%clk 0:01:42]} 21. Bd3 {[%clk 0:02:17]}  a5 {[%clk 0:01:42]} 22. f4 {[%clk 0:02:08]}  Re8 {[%clk 0:01:42]} 23. Qf2 {[%clk 0:02:00]}  Bc6 {[%clk 0:01:37]} 24. Bd2 {[%clk 0:01:51]}  Bg7 {[%clk 0:01:33]} 25. Re3 {[%clk 0:01:40]}  Qd7 {[%clk 0:01:27]} 26. Rf1 {[%clk 0:01:33]}  Bxa4 {[%clk 0:01:24]} 27. Rf3 {[%clk 0:01:27]}  Bb5 {[%clk 0:01:23]} 28. c4 {[%clk 0:01:22]}  Bc6 {[%clk 0:01:22]} 29. e5 {[%clk 0:01:20]}  dxe5 {[%clk 0:01:15]} 30. fxe5 {[%clk 0:01:19]}  Ng4 {[%clk 0:00:45]} 31. hxg4 {[%clk 0:01:16]}  Bxf3 {[%clk 0:00:45]} 32. Qxf3 {[%clk 0:01:17]}  Rbd8 {[%clk 0:00:46]} 33. Bb1 {[%clk 0:00:51]}  Qd4+ {[%clk 0:00:31]} 34. Be3 {[%clk 0:00:46]}  Qxc4 {[%clk 0:00:31]} 35. Ne4 {[%clk 0:00:35]}  Rxe5 {[%clk 0:00:28]} 36. Nf6+ {[%clk 0:00:33]}  Bxf6 {[%clk 0:00:28]} 37. Qxf6 {[%clk 0:00:34]}  Rde8 {[%clk 0:00:14]} 38. Bxh6 {[%clk 0:00:24]}  Qd4+ {[%clk 0:00:09]} 39. Kh2 {[%clk 0:00:20]}  R5e7 {[%clk 0:00:08]} 40. Qxd4 {[%clk 0:00:13]}  cxd4 {[%clk 0:00:09]} 41. Rd1 {[%clk 0:00:14]}  Re2 {[%clk 0:00:06]} 42. Bc1 {[%clk 0:00:11]}  Rd8 {[%clk 0:00:02]} 43. Bd3 {[%clk 0:00:11]}  Re5 {[%clk 0:00:02]} 44. Bf4 {[%clk 0:00:11]}  Rc5 {[%clk 0:00:02]} 45. Kg3 {[%clk 0:00:10]}  g5 {[%clk 0:00:02]} 46. Bd2 {[%clk 0:00:09]}  a4 {[%clk 0:00:03]} 47. Ra1 {[%clk 0:00:09]}  Ra8 {[%clk 0:00:02]} 48. Kf3 {[%clk 0:00:09]}  Kg7 {[%clk 0:00:03]} 49. Ke4 {[%clk 0:00:09]}  Rcc8 {[%clk 0:00:02]} 50. Bxg5 {[%clk 0:00:08]}  f6 {[%clk 0:00:02]} 51. Bd2 {[%clk 0:00:07]}  Re8+ {[%clk 0:00:03]} 52. Kf3 {[%clk 0:00:07]}  Re5 {[%clk 0:00:02]} 53. Bf4 {[%clk 0:00:06]}  Rc5 {[%clk 0:00:02]} 54. Bd6 {[%clk 0:00:06]}  Rcc8 {[%clk 0:00:01]} 55. Bb4 {[%clk 0:00:07]}  Rab8 {[%clk 0:00:01]} 56. Rxa4 {[%clk 0:00:06]}  Re8 {[%clk 0:00:02]} 57. Ra7+ {[%clk 0:00:06]}  Kg8 {[%clk 0:00:01]} 58. Bd2 {[%clk 0:00:07]}  Rbc8 {[%clk 0:00:01]} 59. Bh7+ {[%clk 0:00:07]}  Kh8 {[%clk 0:00:01]} 60. Bf5 {[%clk 0:00:08]}  Re5 {[%clk 0:00:01]} 61. Bxc8 {[%clk 0:00:07]}  d3 {[%clk 0:00:02]} 62. Rd7 {[%clk 0:00:06]}  Re2 {[%clk 0:00:03]} 63. Rxd3 {[%clk 0:00:06]}  Re7 {[%clk 0:00:03]} 64. Bf5 {[%clk 0:00:06]}  Kg7 {[%clk 0:00:04]} 65. Rxb3 {[%clk 0:00:06]}  Rc7 {[%clk 0:00:05]} 66. Rd3 {[%clk 0:00:06]}  Rb7 {[%clk 0:00:05]} 67. Rd7+ {[%clk 0:00:06]}  Rxd7 {[%clk 0:00:05]} 68. Bxd7 {[%clk 0:00:07]} 1-0


[Site "https://www.chess.com"]